[Event "12th Agzamov Memorial 2018"]
[Site "Tashkent"]
[Date "2018.04.28"]
[Round "6"]
[White "Sattarov, Bobir"]
[Black "Tashkhodzhaev, Akram"]
[Result "1/2-1/2"]
[ECO "A03"]
[WhiteElo "2396"]
[BlackElo "2125"]
[Annotator "RC"]
[PlyCount "185"]
[EventDate "2018.??.??"]
[EventType "swiss"]
[EventCountry "UZB"]
[SourceTitle "playchess.com"]
[Source "ChessBase"]
[SourceQuality "1"]
[TimeControl "5400+30"]

1. f4 {[%emt 0:06:15]} d5 {[%emt 0:04:01]} 2. Nf3 {[%emt 0:00:38]} g6 {[%emt 0:00:13]} 3. g3 {[%emt 0:01:46]} Bg7 {[%emt 0:00:11]} 4. Bg2 {[%emt 0:00:02]} Nf6 {[%emt 0:00:11]} 5. O-O {[%emt 0:00:15]} c5 {[%emt 0:00:09]} 6. d3 {[%emt 0:00:50]} Nc6 {[%emt 0:00:09]} 7. c3 {[%emt 0:03:32]} O-O {[%emt 0:00:38]} 8. Na3 {[%emt 0:10:09]} b6 {[%emt 0:09:22]} 9. Bd2 {[%emt 0:06:50]} Bb7 {[%emt 0:08:17]} 10. Qe1 {[%emt 0:15:39]} Rc8 {[%emt 0:03:19]} 11. Rd1 {[%emt 0:19:42]} Qc7 {[%emt 0:01:20]} 12. h3 {[%emt 0:03:41]} Rcd8 {[%emt 0:05:17]} 13. g4 {[%emt 0:03:47]} e5 {[%emt 0:14:49]} 14. Nb5 Qe7 {[%emt 0:08:39]} 15. Nxe5 {[%emt 0:02:07]} Nxe5 {[%emt 0:00:17]} 16. fxe5 {[%emt 0:00:03]} Qxe5 {[%emt 0:00:21]} 17. Bf4 {[%emt 0:00:34]} Qe6 {[%emt 0:00:46]} 18. Qh4 {[%emt 0:02:16]} Rd7 {[%emt 0:01:55]} 19. Rf2 {[%emt 0:03:08]} Ne8 {[%emt 0:03:36]} 20. Rdf1 {[%emt 0:00:48]} Bc6 {[%emt 0:02:28]} 21. Na3 {[%emt 0:01:32]} d4 {[%emt 0:01:32]} 22. Bxc6 {[%emt 0:01:08]} Qxc6 {[%emt 0:00:07]} 23. c4 {[%emt 0:01:33]} f6 {[%emt 0:06:54]} 24. Bh2 {[%emt 0:04:15]} Qe6 {[%emt 0:03:32]} 25. Nb1 {[%emt 0:00:51]} Qe3 {[%emt 0:00:55]} 26. Bf4 {[%emt 0:00:52]} Qe6 {[%emt 0:00:11]} 27. Bh2 {[%emt 0:00:06]} Qe3 {[%emt 0:00:07]} 28. Kh1 {[%emt 0:05:56]} Re7 {[%emt 0:07:12]} 29. Qg3 {[%emt 0:02:16]} Bh6 {[%emt 0:04:12]} 30. Na3 {[%emt 0:00:07]} Qxg3 {[%emt 0:01:33]} 31. Bxg3 {[%emt 0:00:02]} Be3 {[%emt 0:00:15]} 32. Rf3 {[%emt 0:00:51]} Bd2 {[%emt 0:00:54]} 33. R3f2 {[%emt 0:00:04]} Be3 {[%emt 0:00:07]} 34. Rg2 {[%emt 0:00:03]} Rff7 {[%emt 0:00:48]} 35. Nc2 {[%emt 0:00:18]} Bd2 {[%emt 0:01:19]} 36. Rd1 {[%emt 0:00:11]} Bh6 {[%emt 0:01:52]} 37. b4 {[%emt 0:02:47]} Re6 {[%emt 0:00:14]} 38. Kg1 {[%emt 0:02:11]} f5 {[%emt 0:00:10]} 39. gxf5 {[%emt 0:00:13]} Rxf5 {[%emt 0:00:05]} 40. bxc5 {[%emt 0:00:45]} bxc5 {[%emt 0:00:07]} 41. Rb1 {[%emt 0:00:08]} Ra6 {[%emt 0:01:36]} 42. a3 {[%emt 0:01:23]} Rb6 {[%emt 0:00:36]} 43. Rb5 {[%emt 0:00:08]} Bf8 {[%emt 0:02:41]} 44. Rf2 {[%emt 0:00:38]} Rxf2 {[%emt 0:00:49]} 45. Kxf2 {[%emt 0:00:02]} Nd6 {[%emt 0:02:43]} 46. Rxb6 {[%emt 0:01:06]} axb6 {[%emt 0:00:06]} 47. e3 {[%emt 0:00:10]} Nf5 {[%emt 0:04:52]} 48. Bc7 {[%emt 0:00:36]} dxe3+ {[%emt 0:00:42]} 49. Nxe3 {[%emt 0:00:02]} Nxe3 {[%emt 0:00:26]} 50. Kxe3 {[%emt 0:00:01]} Kf7 {[%emt 0:00:09]} 51. Bxb6 {[%emt 0:01:03]} Ke6 {[%emt 0:00:06]} 52. a4 {[%emt 0:01:28]} Kd6 {[%emt 0:00:23]} 53. d4 {[%emt 0:00:45]} cxd4+ {[%emt 0:00:06]} 54. Bxd4 {[%emt 0:00:05]} Be7 {[%emt 0:00:44]} 55. a5 {[%emt 0:01:01]} Kc6 {[%emt 0:00:04]} 56. a6 {[%emt 0:00:02]} g5 {[%emt 0:00:39]} 57. Ke4 {[%emt 0:01:00]} h5 {[%emt 0:00:21]} 58. Kf5 {[%emt 0:00:39]} Bd8 {[%emt 0:00:24]} 59. Be3 {[%emt 0:00:38]} g4 {[%emt 0:00:06]} 60. hxg4 {[%emt 0:00:11]} hxg4 {[%emt 0:00:05]} 61. Kxg4 {[%emt 0:00:35]} Bc7 {[%emt 0:00:21]} 62. Kf5 {[%emt 0:00:05]} Ba5 {[%emt 0:00:12]} 63. Ke6 {[%emt 0:00:09]} Bb4 {[%emt 0:00:30]} 64. Bf4 {[%emt 0:01:15]} Ba5 {[%emt 0:03:31]} 65. Bd6 {[%emt 0:00:44]} Bb6 {[%emt 0:01:03]} 66. Bf4 {[%emt 0:00:15]} Bd4 {[%emt 0:00:44]} 67. Be5 {[%emt 0:00:44]} Bc5 {[%emt 0:00:38]} 68. Bb8 {[%emt 0:00:31]} Kb6 {[%emt 0:00:55]} 69. Kd7 {[%emt 0:00:29]} Bd4 {[%emt 0:00:44]} 70. Bd6 {[%emt 0:00:29]} Kxa6 {[%emt 0:00:19]} 71. Kc6 {[%emt 0:00:01]} Be3 {[%emt 0:00:11]} 72. Bc5 {[%emt 0:00:20]} Bh6 {[%emt 0:00:12]} 73. Bd4 {[%emt 0:00:50]} Bf8 {[%emt 0:00:08]} 74. Be3 {[%emt 0:00:06]} Be7 {[%emt 0:00:07]} 75. Kd7 {[%emt 0:00:33]} Bf8 {[%emt 0:01:29]} 76. Bf4 {[%emt 0:00:09]} Bc5 {[%emt 0:00:12]} 77. Kc6 {[%emt 0:00:18]} Bd4 {[%emt 0:00:27]} 78. Bd6 {[%emt 0:00:49]} Be3 {[%emt 0:00:13]} 79. Bc5 {[%emt 0:00:19]} Bh6 {[%emt 0:00:08]} 80. Kd7 {[%emt 0:00:31]} Bc1 {[%emt 0:00:35]} 81. Bf2 {[%emt 0:00:13]} Ba3 {[%emt 0:00:09]} 82. Be3 {[%emt 0:00:12]} Bb4 {[%emt 0:00:09]} 83. Bd4 {[%emt 0:00:49]} Ba3 {[%emt 0:00:09]} 84. Be5 {[%emt 0:00:04]} Bc5 {[%emt 0:00:13]} 85. Bd6 {[%emt 0:00:06]} Be3 {[%emt 0:00:09]} 86. Kc7 {[%emt 0:00:52]} Bb6+ {[%emt 0:00:19]} 87. Kc6 {[%emt 0:00:04]} Be3 {[%emt 0:00:14]} 88. Bc5 {[%emt 0:00:05]} Bh6 {[%emt 0:00:08]} 89. Kd7 {[%emt 0:00:34]} Kb7 {[%emt 0:01:10]} 90. Bf2 {[%emt 0:00:02]} Bf8 91. Bg3 Bc5 {[%emt 0:00:21]} 92. Bc7 {[%emt 0:00:09]} Be3 {[%emt 0:00:33]} 93. Ba5 {Kc6+ Ke6 Kb7} 1/2-1/2

[Event "12th Agzamov Memorial 2018"]
[Site "Tashkent"]
[Date "2018.04.28"]
[Round "7"]
[White "Fayzullaev, Akmal"]
[Black "Sabirov, Asilbek"]
[Result "1-0"]
[ECO "D10"]
[WhiteElo "2382"]
[BlackElo "2132"]
[Annotator "ChessBase"]
[PlyCount "99"]
[EventDate "2018.??.??"]
[EventType "swiss"]
[EventCountry "UZB"]
[SourceTitle "playchess.com"]
[Source "ChessBase"]
[SourceQuality "1"]
[TimeControl "5400+30"]

1. d4 {[%emt 0:09:24]} d5 {[%emt 0:00:13]} 2. c4 {[%emt 0:00:10]} c6 {[%emt 0:00:01]} 3. cxd5 {[%emt 0:01:22]} cxd5 {[%emt 0:00:07]} 4. Nc3 {[%emt 0:00:04]} Nf6 {[%emt 0:00:08]} 5. Bf4 {[%emt 0:00:10]} Nc6 {[%emt 0:00:15]} 6. e3 {[%emt 0:00:06]} a6 {[%emt 0:00:11]} 7. Rc1 {[%emt 0:00:11]} e6 {[%emt 0:03:02]} 8. Bd3 {[%emt 0:00:07]} Bd6 {[%emt 0:00:17]} 9. Bxd6 {[%emt 0:00:08]} Qxd6 {[%emt 0:00:02]} 10. f4 {[%emt 0:00:07]} Bd7 {[%emt 0:02:06]} 11. Nf3 {[%emt 0:00:21]} Ng4 {[%emt 0:00:24]} 12. Qe2 {[%emt 0:01:10]} f5 {[%emt 0:01:10]} 13. O-O {[%emt 0:01:41]} O-O {[%emt 0:00:31]} 14. h3 {[%emt 0:04:58]} Nf6 {[%emt 0:01:04]} 15. g4 {[%emt 0:01:03]} Ne4 {[%emt 0:10:50]} 16. Qg2 {[%emt 0:05:23]} Nxc3 {[%emt 0:01:58]} 17. Rxc3 {[%emt 0:00:11]} Ne7 {[%emt 0:04:30]} 18. Rfc1 {[%emt 0:05:44]} Rac8 {[%emt 0:03:38]} 19. gxf5 {[%emt 0:00:44]} exf5 {[%emt 0:04:04]} 20. Ne5 {[%emt 0:00:31]} Rxc3 {[%emt 0:00:42]} 21. Rxc3 {[%emt 0:00:06]} Rc8 {[%emt 0:00:43]} 22. Qc2 {[%emt 0:03:32]} Rxc3 {[%emt 0:04:45]} 23. Qxc3 {[%emt 0:00:48]} Ng6 {[%emt 0:08:15]} 24. Nf3 {[%emt 0:09:30]} Ne7 {[%emt 0:06:00]} 25. Kf2 {[%emt 0:02:01]} Nc6 {[%emt 0:00:54]} 26. a3 {[%emt 0:00:26]} h6 {[%emt 0:00:29]} 27. h4 {[%emt 0:01:44]} g6 {[%emt 0:00:41]} 28. Ke2 {[%emt 0:02:43]} Kg7 {[%emt 0:00:47]} 29. Kd2 {[%emt 0:00:05]} Kf8 {[%emt 0:10:54]} 30. Qc5 {[%emt 0:03:29]} Ke7 {[%emt 0:04:29]} 31. Bc2 {[%emt 0:06:01]} Be6 {[%emt 0:02:35]} 32. Kc3 {[%emt 0:04:11]} Bf7 {[%emt 0:05:54]} 33. b4 {[%emt 0:04:06]} Be8 {[%emt 0:01:49]} 34. Bb3 {[%emt 0:01:01]} Ke6 {[%emt 0:00:28]} 35. Ne1 {[%emt 0:06:02]} Ne7 {[%emt 0:02:12]} 36. Qa7 {[%emt 0:04:06]} Qc6+ {[%emt 0:03:08]} 37. Kd2 {[%emt 0:00:11]} Nc8 {[%emt 0:00:09]} 38. Qb8 {[%emt 0:02:15]} Nd6 {[%emt 0:00:28]} 39. Nd3 {[%emt 0:00:51]} b6 {[%emt 0:01:14]} 40. Ne5 {[%emt 0:02:00]} Ne4+ {[%emt 0:04:29]} 41. Ke2 {[%emt 0:03:24]} Qb5+ {[%emt 0:00:06]} 42. Ke1 {[%emt 0:00:18]} Ng3 {[%emt 0:02:11]} 43. Qc8+ {[%emt 0:04:15]} Ke7 {[%emt 0:00:40]} 44. Qc7+ {[%emt 0:01:09]} Ke6 {[%emt 0:03:53]} 45. Nc4 {[%emt 0:00:20]} Qc6 {[%emt 0:07:16]} 46. Qe5+ {[%emt 0:01:29]} Kd7 {[%emt 0:00:58]} 47. Qxd5+ {[%emt 0:00:41]} Kc7 {[%emt 0:01:18]} 48. Qe5+ {[%emt 0:00:17]} Kd8 {[%emt 0:00:20]} 49. d5 {[%emt 0:00:26]} Qc7 {[%emt 0:00:10]} 50. Qf6+ 1-0

[Event "12th Agzamov Memorial 2018"]
[Site "Tashkent"]
[Date "2018.04.28"]
[Round "7"]
[White "Kurbonboeva, Sarvinoz"]
[Black "Sattarov, Bobir"]
[Result "1-0"]
[ECO "A40"]
[WhiteElo "2219"]
[BlackElo "2396"]
[Annotator "NA"]
[PlyCount "90"]
[EventDate "2018.??.??"]
[EventType "swiss"]
[EventCountry "UZB"]
[SourceTitle "playchess.com"]
[Source "ChessBase"]
[SourceQuality "1"]
[TimeControl "5400+30"]

1. d4 g6 {[%emt 0:04:59]} 2. c4 {[%emt 0:00:25]} Bg7 {[%emt 0:00:07]} 3. e4 {[%emt 0:07:07]} c5 {[%emt 0:02:01]} 4. d5 {[%emt 0:00:23]} d6 {[%emt 0:00:36]} 5. h3 {[%emt 0:02:24]} e5 {[%emt 0:06:12]} 6. Nc3 {[%emt 0:12:12]} Ne7 {[%emt 0:00:20]} 7. h4 {[%emt 0:08:06]} h5 {[%emt 0:04:58]} 8. Be2 {[%emt 0:02:53]} Nd7 {[%emt 0:12:12]} 9. Nf3 {[%emt 0:09:23]} a6 {[%emt 0:05:55]} 10. Ng5 {[%emt 0:03:11]} Nf8 {[%emt 0:05:22]} 11. Be3 {[%emt 0:10:45]} f6 {[%emt 0:07:10]} 12. Nh3 {[%emt 0:00:45]} Bh6 {[%emt 0:02:32]} 13. Bxh6 {[%emt 0:05:39]} Rxh6 {[%emt 0:00:11]} 14. Qd2 {[%emt 0:00:03]} Ng8 {[%emt 0:01:16]} 15. O-O-O {[%emt 0:01:31]} Qa5 {[%emt 0:03:56]} 16. f4 $16 {[%emt 0:01:52]} Bxh3 {[%emt 0:15:29]} 17. Rxh3 {[%emt 0:01:14]} exf4 {[%emt 0:07:32]} 18. Qxf4 {[%emt 0:01:11]} O-O-O {[%emt 0:00:52]} 19. g4 {[%emt 0:05:39]} Kb8 {[%emt 0:06:00]} 20. gxh5 {[%emt 0:05:06]} gxh5 {[%emt 0:00:38]} 21. Rg1 {[%emt 0:07:02]} Ng6 {[%emt 0:01:49]} 22. Qf5 {[%emt 0:09:33]} Ne5 {[%emt 0:09:51]} 23. Rg7 {[%emt 0:01:21]} Rh8 {[%emt 0:01:14]} 24. Nd1 {[%emt 0:02:49]} Nh6 {[%emt 0:00:40]} 25. Qxf6 {[%emt 0:00:22]} Nhg4 {[%emt 0:00:32]} 26. Qg5 {[%emt 0:00:42]} Rc8 {[%emt 0:00:25]} 27. Ra3 {[%emt 0:01:16]} Qd8 {[%emt 0:00:02]} 28. Rb3 {[%emt 0:00:34]} Rc7 {[%emt 0:00:00]} 29. Qxd8+ {[%emt 0:00:30]} Rxd8 {[%emt 0:00:02]} 30. Rg5 {[%emt 0:00:23]} Rh7 {[%emt 0:00:17]} 31. Kd2 {[%emt 0:00:35]} Rf8 {[%emt 0:00:13]} 32. Rf5 {[%emt 0:00:30]} Rxf5 {[%emt 0:01:11]} 33. exf5 {[%emt 0:00:01]} Rf7 {[%emt 0:00:03]} 34. Ne3 {[%emt 0:00:56]} Nxe3 {[%emt 0:00:15]} 35. Kxe3 {[%emt 0:00:20]} Rxf5 {[%emt 0:00:02]} 36. Ke4 {[%emt 0:00:09]} Rf2 {[%emt 0:00:02]} 37. Bxh5 {[%emt 0:00:09]} Rh2 {[%emt 0:00:07]} 38. Kf5 {[%emt 0:00:35]} Rxh4 {[%emt 0:00:04]} 39. Kg5 {[%emt 0:00:05]} Rxc4 {[%emt 0:00:08]} 40. Be2 {[%emt 0:00:18]} Ra4 {[%emt 0:00:10]} 41. a3 {[%emt 0:00:14]} Kc7 {[%emt 0:00:08]} 42. Rh3 {[%emt 0:01:42]} Rd4 {[%emt 0:01:42]} 43. Rh7+ {[%emt 0:00:08]} Kb6 {[%emt 0:00:25]} 44. Bf1 {[%emt 0:00:09]} Rxd5 {[%emt 0:00:33]} 45. Bg2 {[%emt 0:00:12]} Nc6+ 1-0